bitfinex/quotes_BTCUSD_20250723
["timestamp","ask_amount","ask_price","bid_price","bid_amount"]
[1753237351156,0.03072001,119360.0,119350.0,1.34874899]
[1753237353400,0.05702001,119360.0,119350.0,0.97379532]
[1753237353611,0.05702001,119360.0,119350.0,1.19874899]
[1753237353821,0.05702001,119360.0,119350.0,0.84487532]
[1753237354028,0.05702001,119360.0,119350.0,0.97375532]
[1753237355325,0.05702001,119360.0,119350.0,1.19870899]
[1753237355533,0.05702001,119360.0,119350.0,1.17398062]
[1753237359752,0.81469624,119360.0,119350.0,0.002]
[1753237359967,1.02580913,119360.0,119350.0,0.13088]
[1753237360206,1.20085546,119360.0,119350.0,0.13088]
[1753237360614,1.20085546,119360.0,119350.0,0.10223]
[1753237360825,0.80085546,119360.0,119350.0,0.10223]
[1753237361057,0.19340195,119350.0,119340.0,0.003]
[1753237361270,0.87406562,119350.0,119340.0,0.13188]
[1753237361840,0.88236739,119350.0,119340.0,0.13188]
[1753237362862,0.72736739,119350.0,119340.0,0.13188]
[1753237363060,0.50241372,119350.0,119340.0,0.13188]
[1753237363437,0.72736739,119350.0,119340.0,0.13188]
[1753237363640,0.50541372,119350.0,119340.0,0.13188]
[1753237363852,0.73036739,119350.0,119340.0,0.13188]
[1753237367526,0.50541372,119350.0,119340.0,0.13188]
[1753237367732,0.73036739,119350.0,119340.0,0.13188]
[1753237373048,0.50541372,119350.0,119340.0,0.13188]
[1753237373266,0.73036739,119350.0,119340.0,0.13188]
[1753237373448,0.51049031,119350.0,119340.0,0.30784774]
[1753237373766,0.51049031,119350.0,119340.0,0.13188]
[1753237373981,0.91049031,119350.0,119340.0,0.30784782]
[1753237374197,0.90211195,119350.0,119340.0,0.30784782]
[1753237374627,0.90211195,119350.0,119340.0,0.31622716]
[1753237374842,1.12706562,119350.0,119340.0,0.32460629]
[1753237375057,0.90211195,119350.0,119340.0,0.32460629]
[1753237375439,0.90211195,119350.0,119340.0,0.32460643]
[1753237375638,0.89373338,119350.0,119340.0,0.13188]
[1753237375847,1.11868705,119350.0,119340.0,0.13188]
[1753237376991,1.11868705,119350.0,119340.0,0.30784767]
[1753237377193,1.11868705,119350.0,119340.0,0.13188]
[1753237377812,1.11868705,119350.0,119340.0,0.30784782]
[1753237378031,1.11868705,119350.0,119340.0,0.31622709]
[1753237378457,1.11868705,119350.0,119340.0,0.32460629]
[1753237378869,1.11868705,119350.0,119340.0,0.30784782]
[1753237379366,1.11868705,119350.0,119340.0,0.14025942]
[1753237380248,0.90744045,119350.0,119340.0,0.31622709]
[1753237380453,0.47359731,119350.0,119340.0,0.33298514]
[1753237380657,0.47359731,119350.0,119340.0,0.32460629]
[1753237380862,0.27604731,119350.0,119340.0,0.32460629]
[1753237381074,0.25859829,119350.0,119340.0,0.32460629]
[1753237381335,0.25021993,119350.0,119340.0,0.31622709]
[1753237381549,0.45841667,119350.0,119340.0,0.13188]
[1753237381984,0.45841667,119350.0,119340.0,0.31622701]
[1753237382192,0.45841646,119350.0,119340.0,0.32460607]
[1753237382406,0.46679468,119350.0,119340.0,0.33298506]
[1753237382639,0.24716958,119350.0,119340.0,0.34136398]
[1753237382862,0.01043822,119350.0,119340.0,0.34136398]
[1753237383072,0.01885401,119350.0,119340.0,0.34136398]
[1753237383386,0.03129258,119350.0,119340.0,0.33836398]
[1753237383602,0.03329258,119350.0,119340.0,0.33836398]
[1753237384228,0.20086694,119350.0,119340.0,0.33836398]
[1753237384430,0.03119508,119350.0,119340.0,0.33836398]
[1753237384648,0.03329251,119350.0,119340.0,0.33836398]
[1753237384854,0.04167108,119350.0,119340.0,0.33836398]
[1753237385672,0.05004972,119350.0,119340.0,0.33836398]
[1753237385883,0.04167108,119350.0,119340.0,0.33836398]
[1753237386663,0.03329251,119350.0,119340.0,0.33836398]
[1753237386867,0.02491401,119350.0,119340.0,0.39496398]
[1753237387075,0.03329251,119350.0,119340.0,0.39496398]
[1753237387194,0.03329244,119350.0,119340.0,0.37036398]
[1753237387406,0.03329244,119350.0,119340.0,0.34346398]
[1753237387633,0.01653565,119350.0,119340.0,0.34346398]
[1753237387853,0.02491401,119350.0,119340.0,0.36946398]
[1753237388051,0.03329251,119350.0,119340.0,0.34346398]
[1753237388527,0.04167108,119350.0,119340.0,0.33836398]
[1753237388742,0.05004972,119350.0,119340.0,0.33836398]
[1753237390129,0.04167108,119350.0,119340.0,0.33836398]
[1753237390762,0.02491401,119350.0,119340.0,0.34047398]
[1753237390992,0.03329251,119350.0,119340.0,0.34363398]
[1753237391546,0.03329258,119350.0,119340.0,0.34363398]
[1753237391753,0.03329258,119350.0,119340.0,0.34047398]
[1753237392727,0.03329251,119350.0,119340.0,0.34047398]
[1753237392946,0.04167108,119350.0,119340.0,0.33836398]
[1753237393775,0.01653565,119350.0,119340.0,0.34047398]
[1753237394047,0.02491401,119350.0,119340.0,0.34363398]
[1753237394273,0.03329244,119350.0,119340.0,0.36953398]
[1753237394501,0.02491401,119350.0,119340.0,0.36953398]
[1753237394720,0.01653565,119350.0,119340.0,0.34363398]
[1753237394928,0.02491394,119350.0,119340.0,0.34363398]
[1753237395433,0.00815743,119350.0,119340.0,0.36863398]
[1753237395655,0.004,119350.0,119340.0,0.57628495]
[1753237395869,0.004,119350.0,119340.0,0.73070747]
[1753237396079,0.004,119350.0,119340.0,0.70516495]
[1753237396295,0.004,119350.0,119340.0,0.57628495]
[1753237396551,0.002,119350.0,119340.0,0.70516495]
[1753237396731,0.002,119350.0,119340.0,0.48021128]
[1753237397167,0.01885227,119360.0,119350.0,0.19270965]
[1753237397362,0.02936986,119360.0,119350.0,0.27718695]
[1753237397813,0.02936979,119360.0,119350.0,0.27718695]
[1753237398026,0.02099227,119360.0,119350.0,0.27718695]
[1753237398238,0.00423744,119360.0,119350.0,0.27718695]
[1753237398452,1e-08,119360.0,119350.0,0.33455695]
[1753237398637,1e-08,119360.0,119350.0,0.46343695]
[1753237399094,0.00100001,119360.0,119350.0,0.46343695]
[1753237399300,0.00200001,119360.0,119350.0,0.68839062]
[1753237399506,0.00200001,119360.0,119350.0,0.33455695]
[1753237399707,0.00200001,119360.0,119350.0,0.68839062]
[1753237400345,0.00200001,119360.0,119350.0,0.46343695]
[1753237400565,0.00200001,119360.0,119350.0,0.68839062]
[1753237401193,0.00200001,119360.0,119350.0,0.46343695]
[1753237401400,0.00200001,119360.0,119350.0,0.68839062]
[1753237401867,0.00200001,119360.0,119350.0,0.46343695]
[1753237402083,0.00200001,119360.0,119350.0,0.68839062]
[1753237405753,0.00200001,119360.0,119350.0,0.46343695]
[1753237405961,0.00200001,119360.0,119350.0,0.68839062]
[1753237410334,0.00200001,119360.0,119350.0,0.46343695]
[1753237410536,0.00200001,119360.0,119350.0,0.68839062]
[1753237411446,0.0292732,119360.0,119350.0,0.33139702]
[1753237411669,0.0292732,119360.0,119350.0,0.40626695]
[1753237411670,0.03137056,119360.0,119350.0,0.40626695]
[1753237411954,0.07975269,119360.0,119350.0,0.40626695]
[1753237412176,0.02513487,119350.0,119340.0,0.18750631]
[1753237412382,0.01889637,119350.0,119340.0,0.73794368]
[1753237412592,0.01889637,119350.0,119340.0,0.75470215]
[1753237413001,0.0272748,119350.0,119340.0,0.75470215]
[1753237413237,0.01889637,119350.0,119340.0,0.75470215]
[1753237413881,0.48577073,119350.0,119330.0,0.23792124]
[1753237414087,0.0167577,119340.0,119330.0,0.27734195]
[1753237414290,0.0167577,119340.0,119330.0,0.41169195]
[1753237414519,0.02727669,119340.0,119330.0,0.41169195]
[1753237414720,0.0188977,119340.0,119330.0,0.41169195]
[1753237414925,0.19486516,119340.0,119330.0,0.41169195]
[1753237415159,0.19486516,119340.0,119330.0,0.41169202]
[1753237415160,0.21162356,119340.0,119330.0,0.41169202]
[1753237415362,0.19486516,119340.0,119330.0,0.42007165]
[1753237415709,0.20324436,119340.0,119330.0,0.41169202]
[1753237415964,0.2116237,119340.0,119330.0,0.39804239]
[1753237416166,0.19486558,119340.0,119330.0,0.39804246]
[1753237416420,0.203245,119340.0,119330.0,0.4064223]
[1753237416764,0.20324492,119340.0,119330.0,0.4064223]
[1753237417521,0.20324492,119340.0,119330.0,0.4074223]
[1753237417720,0.20324492,119340.0,119330.0,0.31456502]
[1753237417930,0.20324492,119340.0,119330.0,0.30618525]
[1753237418128,0.20324492,119340.0,119330.0,0.32294486]
[1753237418761,0.21162434,119340.0,119330.0,0.32294486]
[1753237418888,0.20324542,119340.0,119330.0,0.30618525]
[1753237419088,0.25404542,119340.0,119330.0,0.31456516]
[1753237419310,0.20324542,119340.0,119330.0,0.32294493]
[1753237419617,0.20324527,119340.0,119330.0,0.33132456]
[1753237419814,0.20324527,119340.0,119330.0,0.33032456]
[1753237420385,0.21262469,119340.0,119330.0,0.33032456]
[1753237421174,0.21262469,119340.0,119330.0,0.32194493]
[1753237421384,0.4741901,119340.0,119330.0,0.00012336]
[1753237421592,0.45743149,119340.0,119330.0,0.12916336]
[1753237421798,0.23247782,119340.0,119330.0,0.12916336]
[1753237422218,0.45743149,119340.0,119330.0,0.12916336]
[1753237422424,0.23247782,119340.0,119330.0,0.12916336]
[1753237422839,0.48247782,119340.0,119330.0,0.12916336]
[1753237423054,0.70743149,119340.0,119330.0,0.12916336]
[1753237423268,0.70743149,119340.0,119330.0,0.12924336]
[1753237424562,0.72488051,119340.0,119330.0,0.12924336]
[1753237425631,0.80935781,119340.0,119330.0,0.12924336]
[1753237426490,0.81035781,119340.0,119330.0,0.12924336]
[1753237426951,0.80935781,119340.0,119330.0,0.12924336]
[1753237427171,0.81135781,119340.0,119330.0,0.12924336]
[1753237427581,1.15135781,119340.0,119330.0,0.12924336]
[1753237430344,1.14935781,119340.0,119330.0,0.12924336]
[1753237430566,1.15135781,119340.0,119330.0,0.12924336]
[1753237430808,1.23583511,119340.0,119330.0,0.12924336]
[1753237431021,1.15135781,119340.0,119330.0,0.12924336]
[1753237431277,1.14935781,119340.0,119330.0,0.12924336]
[1753237431712,1.15335781,119340.0,119330.0,0.13024336]
[1753237432370,1.17850481,119340.0,119330.0,0.13024336]
[1753237433013,1.18250481,119340.0,119330.0,0.13024336]
[1753237434239,1.18250481,119340.0,119330.0,0.00112336]
[1753237435708,1.26698211,119340.0,119330.0,0.00112336]
[1753237436062,1.31698211,119340.0,119330.0,0.00112336]
[1753237436903,0.47117381,119320.0,119310.0,0.129472]
[1753237437131,0.45540084,119320.0,119310.0,0.129472]
[1753237437338,0.45847084,119320.0,119310.0,0.129472]
[1753237437767,0.70847084,119320.0,119310.0,0.129472]
[1753237437913,0.71677724,119320.0,119310.0,0.129472]
[1753237438117,0.71777724,119320.0,119310.0,0.129472]
[1753237438479,0.71877724,119320.0,119310.0,0.129472]
[1753237439908,0.4385275,119320.0,119310.0,0.30746399]
[1753237440136,0.29459078,119320.0,119310.0,0.3730753]
[1753237440378,0.28620961,119320.0,119310.0,0.38983743]
[1753237440506,0.47058739,119320.0,119310.0,0.38983743]
[1753237440704,0.4622072,119320.0,119310.0,0.3730753]
[1753237440912,0.4622072,119320.0,119310.0,0.38145654]
[1753237441806,0.4538268,119320.0,119310.0,0.35631254]
[1753237441972,0.44544626,119320.0,119310.0,0.188682]
[1753237444003,0.86686193,119320.0,119310.0,0.188682]
[1753237444217,1.0939656,119320.0,119310.0,0.131452]
[1753237444817,1.07254993,119320.0,119310.0,0.131452]
[1753237445175,1.07254993,119320.0,119310.0,0.129472]
[1753237445391,1.07561993,119320.0,119310.0,0.000392]
[1753237445593,1.07561993,119320.0,119310.0,0.129432]
[1753237446204,1.07392046,119320.0,119310.0,0.129432]
[1753237447226,0.67392046,119320.0,119310.0,0.129432]
[1753237448268,0.67392046,119320.0,119310.0,0.000392]
[1753237448486,0.80879776,119320.0,119310.0,0.129352]
[1753237448868,0.72432046,119320.0,119310.0,0.129352]
[1753237450104,0.49936679,119320.0,119310.0,0.129352]
[1753237450354,0.72432046,119320.0,119310.0,0.129352]
[1753237450550,0.67392046,119320.0,119310.0,0.129352]
[1753237453445,0.67392046,119320.0,119310.0,0.000392]
[1753237453622,0.72672046,119320.0,119310.0,0.129312]
[1753237454312,0.70072046,119320.0,119310.0,0.129312]
[1753237454640,0.67392046,119320.0,119310.0,0.129312]
[1753237454871,0.67392046,119320.0,119310.0,0.000392]
[1753237455081,0.44896679,119320.0,119310.0,0.129312]
[1753237455286,0.67392046,119320.0,119310.0,0.129312]
[1753237455792,0.75839776,119320.0,119310.0,0.129312]
[1753237456710,0.75532776,119320.0,119310.0,0.129312]
[1753237456868,0.67085046,119320.0,119310.0,0.129312]
[1753237457067,0.44589679,119320.0,119310.0,0.131422]
[1753237457417,0.44589679,119320.0,119310.0,0.187252]
[1753237457838,0.84589679,119320.0,119310.0,0.187252]
[1753237458280,0.86108665,119320.0,119310.0,0.187252]
[1753237459178,0.84589679,119320.0,119310.0,0.187252]
[1753237459406,0.84589679,119320.0,119310.0,0.161752]
[1753237459551,0.84589679,119320.0,119310.0,0.158622]
[1753237460009,1.07085046,119320.0,119310.0,0.158622]
[1753237460993,1.07085046,119320.0,119310.0,0.187152]
[1753237462171,1.07085046,119320.0,119310.0,0.158622]
[1753237462454,1.15532776,119320.0,119310.0,0.129312]
[1753237462634,1.15837776,119320.0,119310.0,0.129312]
[1753237462837,1.15829395,119320.0,119310.0,0.129312]
[1753237463812,0.84581298,119320.0,119310.0,0.129312]
[1753237464020,0.67076665,119320.0,119310.0,0.156012]
[1753237464229,0.44581298,119320.0,119310.0,0.156012]
[1753237464948,0.44581298,119320.0,119310.0,0.183122]
[1753237465151,0.44581298,119320.0,119310.0,0.186252]
[1753237466004,0.44581298,119320.0,119310.0,0.158122]
[1753237466273,0.44581298,119320.0,119310.0,0.156012]
[1753237466853,0.44581298,119320.0,119310.0,0.129312]
[1753237467474,0.67076665,119320.0,119310.0,0.000392]
[1753237467690,0.67381665,119320.0,119310.0,0.129312]
[1753237470802,1.00814762,119320.0,119310.0,0.000392]
[1753237471001,1.03444762,119320.0,119310.0,0.129312]
[1753237471415,1.37444762,119320.0,119310.0,0.129312]
[1753237471877,1.37344762,119320.0,119310.0,0.129312]
[1753237472084,1.37244762,119320.0,119310.0,0.129312]
[1753237472293,1.37444762,119320.0,119310.0,0.129312]
[1753237472975,1.37744762,119320.0,119310.0,0.130312]
[1753237473713,1.15249395,119320.0,119310.0,0.130312]
[1753237474450,1.17764495,119320.0,119310.0,0.130312]
[1753237474653,1.40259862,119320.0,119310.0,0.001392]
[1753237476028,1.17764495,119320.0,119310.0,0.001392]
[1753237477000,1.41881484,119320.0,119310.0,0.001392]
[1753237477200,1.40259862,119320.0,119310.0,0.001392]
[1753237481000,1.17764495,119320.0,119310.0,0.001392]
[1753237481783,1.40259862,119320.0,119310.0,0.001392]
[1753237483254,1.17764495,119320.0,119310.0,0.001392]
[1753237486344,1.40259862,119320.0,119310.0,0.001392]
[1753237486561,1.17764495,119320.0,119310.0,0.001392]
[1753237488057,1.40259862,119320.0,119310.0,0.001392]
[1753237489049,1.17764495,119320.0,119310.0,0.001392]
[1753237489257,1.40259862,119320.0,119310.0,0.001392]
[1753237489671,1.41458303,119320.0,119310.0,0.001392]
[1753237490275,1.40259862,119320.0,119310.0,0.001392]
[1753237490560,1.45259862,119320.0,119310.0,0.001392]
[1753237490773,1.58151862,119320.0,119310.0,0.001392]
[1753237491893,1.57651862,119320.0,119310.0,0.000392]
[1753237492129,1.58051862,119320.0,119310.0,0.001392]
[1753237492345,1.66499592,119320.0,119310.0,0.001392]
[1753237493387,1.66699592,119320.0,119310.0,0.001392]
[1753237493901,1.75510592,119320.0,119310.0,0.001392]
[1753237494100,0.83136894,119310.0,119300.0,0.132005]
[1753237494333,1.14585991,119310.0,119300.0,0.132005]
[1753237494549,1.23033721,119310.0,119300.0,0.132005]
[1753237494769,0.28631955,119310.0,119300.0,0.188945]
[1753237495009,0.43439323,119310.0,119300.0,0.188945]
[1753237495282,0.42701164,119310.0,119300.0,0.22866959]
[1753237495497,0.26776199,119310.0,119300.0,0.61607123]
[1753237495734,0.25938089,119310.0,119300.0,0.61607123]
[1753237495963,0.00938089,119310.0,119300.0,0.62445296]
[1753237496183,0.00938089,119310.0,119300.0,0.39949929]
[1753237496399,0.01776192,119310.0,119300.0,0.39949929]
[1753237496823,0.01876192,119310.0,119300.0,0.39949929]
[1753237497019,0.02714309,119310.0,119300.0,0.39949929]
[1753237497266,0.01876192,119310.0,119300.0,0.40795409]
[1753237498160,0.01876192,119310.0,119300.0,0.63290776]
[1753237498593,0.002,119310.0,119300.0,0.63290776]
[1753237499561,0.002,119310.0,119300.0,0.62445296]
[1753237502252,0.00409743,119310.0,119300.0,0.62445296]
[1753237502866,0.00409743,119310.0,119300.0,0.39949929]
[1753237503080,0.01247839,119310.0,119300.0,0.62445296]
[1753237503284,0.00409743,119310.0,119300.0,0.62445296]
[1753237503462,0.01247839,119310.0,119300.0,0.62445296]
[1753237503667,0.02085942,119310.0,119300.0,0.62445296]
[1753237503869,0.01247839,119310.0,119300.0,0.62445296]
[1753237506184,0.00409743,119310.0,119300.0,0.62445296]
[1753237506388,0.01247839,119310.0,119300.0,0.62445296]
[1753237508240,0.1884901,119310.0,119300.0,0.61607123]
[1753237508440,0.18639267,119310.0,119300.0,0.60768943]
[1753237508648,0.1780115,119310.0,119300.0,0.62445296]
[1753237508854,0.18639253,119310.0,119300.0,0.62445296]
[1753237509471,0.18639253,119310.0,119300.0,0.61607123]
[1753237509677,0.18639253,119310.0,119300.0,0.62445296]
[1753237510675,0.19477377,119310.0,119300.0,0.35758959]
[1753237510894,0.19477377,119310.0,119300.0,0.59930735]
[1753237511115,0.19477363,119310.0,119300.0,0.61607088]
[1753237512586,0.002,119310.0,119300.0,0.61607088]
[1753237513010,0.002,119310.0,119300.0,0.48715088]
[1753237513188,0.01247832,119310.0,119300.0,0.61603088]
[1753237513494,0.01147832,119310.0,119300.0,0.61503088]
[1753237513911,0.00309743,119310.0,119300.0,0.61503088]
[1753237514342,0.00409743,119310.0,119300.0,0.48715088]
[1753237514550,0.02085942,119310.0,119300.0,0.61603088]
[1753237514930,0.01985935,119310.0,119300.0,0.61603088]
[1753237515590,0.01147832,119310.0,119300.0,0.61603088]
[1753237516430,0.01147832,119310.0,119300.0,0.61703088]
[1753237516638,0.01985935,119310.0,119300.0,0.61703088]
[1753237516760,0.01985935,119310.0,119300.0,0.39207721]
[1753237516974,0.01885935,119310.0,119300.0,0.39107721]
[1753237517844,0.20325237,119310.0,119300.0,0.60764922]
[1753237518073,0.19277363,119310.0,119300.0,0.61603095]
[1753237518270,0.19377363,119310.0,119300.0,0.61703095]
[1753237518508,0.20215501,119310.0,119300.0,0.39207728]
[1753237518726,0.02614309,119310.0,119300.0,0.61703095]
[1753237518934,0.02824052,119310.0,119300.0,0.61703095]
[1753237519358,0.02824052,119310.0,119300.0,0.39207728]
[1753237519916,0.19587197,119310.0,119300.0,0.062025]
[1753237520185,0.18739337,119310.0,119300.0,0.062025]
[1753237520394,0.43284606,119310.0,119300.0,0.005085]
[1753237520620,0.48374606,119310.0,119300.0,0.133925]
[1753237521055,0.73374606,119310.0,119300.0,0.133925]
[1753237521269,0.73374606,119310.0,119300.0,0.132925]
[1753237521634,1.13374606,119310.0,119300.0,0.131925]
[1753237521845,1.13574606,119310.0,119300.0,0.132925]
[1753237524745,0.73574606,119310.0,119300.0,0.132925]
[1753237525187,1.13574606,119310.0,119300.0,0.132925]
[1753237526034,1.22022336,119310.0,119300.0,0.004085]
[1753237526275,1.22022336,119310.0,119300.0,0.132965]
[1753237527608,0.82022336,119310.0,119300.0,0.132965]
[1753237527959,0.90470066,119310.0,119300.0,0.132965]
[1753237528621,1.64470066,119310.0,119300.0,0.004085]
[1753237528857,1.24470066,119310.0,119300.0,0.132925]
[1753237529454,1.24470066,119310.0,119300.0,0.004085]
[1753237530070,1.24370066,119310.0,119300.0,0.004085]
[1753237530451,1.24570066,119310.0,119300.0,0.004085]
[1753237531031,1.24370066,119310.0,119300.0,0.003085]
[1753237531412,1.16122336,119310.0,119300.0,0.004085]
[1753237534553,0.4248267,119290.0,119280.0,0.13188]
[1753237534756,0.4268267,119290.0,119280.0,0.13188]
[1753237535476,0.20187303,119290.0,119280.0,0.13188]
[1753237535686,0.20187303,119290.0,119280.0,0.13288]
[1753237535907,0.45187303,119290.0,119280.0,0.13337067]
[1753237536514,0.45287303,119290.0,119280.0,0.13537067]
[1753237537999,0.6778267,119290.0,119280.0,0.13537067]
[1753237546159,1.58262188,119290.0,119280.0,0.00649067]
[1753237546382,1.60777988,119290.0,119280.0,0.00649067]
[1753237546775,1.38282621,119290.0,119280.0,0.00649067]
[1753237546996,1.51166621,119290.0,119280.0,0.00649067]
[1753237547216,1.53669504,119290.0,119280.0,0.00549067]
[1753237547425,1.53569504,119290.0,119280.0,0.00349067]
[1753237547635,1.16314716,119290.0,119280.0,0.00549067]
[1753237547866,1.39310083,119290.0,119280.0,0.00549067]
[1753237550251,0.47826426,119270.0,119260.0,0.18454]
[1753237550375,0.56274156,119270.0,119260.0,0.18663225]
[1753237550592,0.56274156,119270.0,119260.0,0.18976225]
[1753237550794,0.81274156,119270.0,119260.0,0.18976225]
[1753237551226,0.81274156,119270.0,119260.0,0.19076225]
[1753237551452,0.81674156,119270.0,119260.0,0.19076225]
[1753237551674,0.81883156,119270.0,119260.0,0.19076225]
[1753237552842,1.04378523,119270.0,119260.0,0.19076225]
[1753237553259,0.81883156,119270.0,119260.0,0.19076225]
[1753237554168,1.22730159,119270.0,119260.0,0.19076225]
[1753237555199,0.93349226,119270.0,119260.0,0.19076225]
[1753237556905,0.93140226,119270.0,119260.0,0.19076225]
[1753237560402,0.92301828,119270.0,119260.0,0.19076225]
[1753237563012,0.83854077,119270.0,119260.0,0.19076225]
[1753237563217,0.88114208,119270.0,119260.0,0.19914729]
[1753237563640,0.87275775,119270.0,119260.0,0.60018675]
[1753237563886,0.48114208,119270.0,119260.0,0.19914729]
[1753237564096,0.48114201,119270.0,119260.0,0.19914729]
[1753237564302,0.48114201,119270.0,119260.0,0.19076225]
[1753237564646,0.48114201,119270.0,119260.0,0.19914722]
[1753237564851,0.43854063,119270.0,119260.0,0.38361733]
[1753237565053,0.43845451,119270.0,119260.0,0.60857107]
[1753237565266,0.254,119270.0,119260.0,0.61695561]
[1753237566061,0.004,119270.0,119260.0,0.61695561]
[1753237566285,0.46028415,119280.0,119270.0,0.23545521]
[1753237566492,0.46028415,119280.0,119270.0,0.23221109]
[1753237566698,0.46866771,119280.0,119270.0,0.24059528]
[1753237566913,0.46866771,119280.0,119270.0,0.23221109]
[1753237567120,0.46866771,119280.0,119270.0,0.18498]
[1753237567324,0.46866771,119280.0,119270.0,0.19336433]
[1753237567750,0.47066771,119280.0,119270.0,0.37043535]
[1753237568188,0.47066771,119280.0,119270.0,0.37881954]
[1753237568189,0.47053159,119280.0,119270.0,0.37881954]
[1753237568604,0.46228415,119280.0,119270.0,0.38720366]
[1753237568823,0.46228415,119280.0,119270.0,0.37881954]
[1753237569033,0.47166771,119280.0,119270.0,0.37881954]
[1753237569248,0.47166771,119280.0,119270.0,0.37043535]
[1753237569459,0.47166771,119280.0,119270.0,0.37881954]
[1753237571646,0.46328415,119280.0,119270.0,0.37881954]
[1753237571826,0.253,119280.0,119270.0,0.38720366]
[1753237572079,0.253,119280.0,119270.0,0.62054089]
[1753237574016,0.003,119280.0,119270.0,0.62054089]
[1753237574189,0.00509743,119280.0,119270.0,0.62054089]
[1753237574388,0.0134805,119280.0,119270.0,0.49170089]
[1753237574593,0.00509743,119280.0,119270.0,0.26674722]
[1753237574791,0.00509743,119280.0,119270.0,0.39554722]
[1753237574999,0.00509743,119280.0,119270.0,0.26674722]
[1753237575198,0.00509743,119280.0,119270.0,0.39554722]
[1753237575543,0.01348043,119280.0,119270.0,0.39554722]
[1753237575945,0.26348043,119280.0,119270.0,0.39554722]
[1753237576185,0.26976607,119280.0,119270.0,0.39554722]
[1753237576441,0.261383,119280.0,119270.0,0.39554722]
[1753237577718,0.261383,119280.0,119270.0,0.62050089]
[1753237578588,0.253,119280.0,119270.0,0.62050089]
[1753237579274,0.261383,119280.0,119270.0,0.62050089]
[1753237579480,0.261383,119280.0,119270.0,0.39554722]
[1753237580543,0.26976607,119280.0,119270.0,0.39554722]
[1753237580755,0.26976607,119280.0,119270.0,0.62050089]
[1753237582214,0.27814928,119280.0,119270.0,0.62050089]
[1753237582426,0.26976607,119280.0,119270.0,0.62050089]
[1753237583065,0.261383,119280.0,119270.0,0.62050089]
[1753237584139,0.253,119280.0,119270.0,0.62050089]
[1753237584995,0.003,119280.0,119270.0,0.62050089]
[1753237585856,0.003,119280.0,119270.0,0.70497819]
[1753237595748,0.002,119280.0,119270.0,0.70497819]
[1753237596199,0.002,119280.0,119270.0,0.70493819]
[1753237596660,0.20955448,119300.0,119290.0,0.23452429]
[1753237596887,0.20955448,119300.0,119290.0,0.37368687]
[1753237597122,0.20955448,119300.0,119290.0,0.37666687]
[1753237597443,0.20117226,119300.0,119290.0,0.37666687]
[1753237597667,0.20117226,119300.0,119290.0,0.38504938]
[1753237598435,0.20955448,119300.0,119290.0,0.37666687]
[1753237598634,0.21355448,119300.0,119290.0,0.38604952]
[1753237598851,0.21355448,119300.0,119290.0,0.37766694]
[1753237599718,0.21355448,119300.0,119290.0,0.38604952]
[1753237600164,0.20517226,119300.0,119290.0,0.39443203]
[1753237600380,0.20517226,119300.0,119290.0,0.3860491]
[1753237600806,0.20517226,119300.0,119290.0,0.37766659]
[1753237601094,0.20517226,119300.0,119290.0,0.3860491]
[1753237601424,0.20517226,119300.0,119290.0,0.37766659]
[1753237601606,0.21355441,119300.0,119290.0,0.3860491]
[1753237601846,0.21355441,119300.0,119290.0,0.37766659]
[1753237602059,0.21355441,119300.0,119290.0,0.3860491]
[1753237602556,0.19886102,119300.0,119290.0,0.18486]
[1753237602778,0.2111381,119300.0,119290.0,0.12972]
[1753237602994,0.4611381,119300.0,119290.0,0.12972]
[1753237603863,0.4579281,119300.0,119290.0,0.12972]
[1753237606032,0.4579281,119300.0,119290.0,0.12846454]
[1753237609389,0.44954602,119300.0,119290.0,0.12846454]
[1753237614367,0.45275602,119300.0,119290.0,0.12846454]
[1753237615126,0.44954602,119300.0,119290.0,0.12846454]
[1753237615341,0.02514949,119280.0,119270.0,0.23072088]
[1753237615562,0.20330304,119280.0,119270.0,0.36982521]
[1753237615780,0.20120561,119280.0,119270.0,0.37820926]
[1753237615990,0.19282219,119280.0,119270.0,0.37820926]
[1753237616208,0.19282219,119280.0,119270.0,0.38659324]
[1753237616646,0.1760557,119280.0,119270.0,0.38659324]
[1753237616852,0.18543884,119280.0,119270.0,0.39697708]
[1753237617393,0.48473884,119280.0,119270.0,0.39697708]
[1753237617643,0.48473884,119280.0,119270.0,0.39697715]
[1753237617849,0.3003,119280.0,119270.0,0.62193033]
[1753237618277,0.308683,119280.0,119270.0,0.62193033]
[1753237618768,0.3003,119280.0,119270.0,0.62193033]
[1753237619642,0.308683,119280.0,119270.0,0.62193033]
[1753237620386,0.3003,119280.0,119270.0,0.62193033]
[1753237621508,0.48473884,119280.0,119270.0,0.38020905]
[1753237621742,0.4763557,119280.0,119270.0,0.61354677]
[1753237622000,0.48473877,119280.0,119270.0,0.61354677]
[1753237623363,0.49312205,119280.0,119270.0,0.38859324]
[1753237623603,0.49312205,119280.0,119270.0,0.62193082]
[1753237623843,0.48473877,119280.0,119270.0,0.62193033]
[1753237624480,0.48473877,119280.0,119270.0,0.61354649]
[1753237624709,0.49312198,119280.0,119270.0,0.61354649]
[1753237625203,0.50150533,119280.0,119270.0,0.58001043]
[1753237625438,0.48473877,119280.0,119270.0,0.38859275]
[1753237625660,0.48473877,119280.0,119270.0,0.3969768]
[1753237626086,0.3003,119280.0,119270.0,0.3969768]
[1753237626514,0.3003,119280.0,119270.0,0.62193047]
[1753237627073,0.47635584,119280.0,119270.0,0.62193047]
[1753237627298,0.48680947,119280.0,119270.0,0.002]
[1753237627579,0.71497314,119280.0,119270.0,0.13064]
[1753237628018,0.74001947,119280.0,119270.0,0.13064]
[1753237628660,0.73976947,119280.0,119270.0,0.13064]
[1753237629738,0.73138619,119280.0,119270.0,0.13064]
[1753237634888,0.72842619,119280.0,119270.0,0.13064]
[1753237635335,0.72842619,119280.0,119270.0,0.14740859]
[1753237635626,0.72842619,119280.0,119270.0,0.13902433]
[1753237636072,0.72842619,119280.0,119270.0,0.13064]
[1753237643587,0.72842619,119280.0,119270.0,0.30671109]
[1753237643790,0.72842619,119280.0,119270.0,0.31509535]
[1753237644433,0.72842619,119280.0,119270.0,0.13902433]
[1753237644632,0.72842619,119280.0,119270.0,0.13064]
[1753237648154,0.72842619,119280.0,119270.0,0.13902433]
[1753237648820,0.7451931,119280.0,119270.0,0.37238528]
[1753237649044,0.74519254,119280.0,119270.0,0.63374735]
[1753237649260,0.74519254,119280.0,119270.0,0.63374742]
[1753237649483,0.74519254,119280.0,119270.0,0.61697897]
[1753237649694,0.75357617,119280.0,119270.0,0.44929221]
[1753237649912,0.75357617,119280.0,119270.0,0.61697897]
[1753237650096,0.75357617,119280.0,119270.0,0.62536323]
[1753237650540,0.75357617,119280.0,119270.0,0.61697897]
[1753237651307,0.75357617,119280.0,119270.0,0.62536323]
[1753237651732,0.75357617,119280.0,119270.0,0.61697897]
[1753237651917,0.75357617,119280.0,119270.0,0.62536323]